[Event "26th Zadar Open 2019"]
[Site "Zadar"]
[Date "2019.12.19"]
[Round "6.7"]
[White "Dixit, Nikhil"]
[Black "Nguyen, Piotr"]
[Result "1-0"]
[ECO "B27"]
[WhiteElo "2318"]
[BlackElo "2413"]
[Annotator "RC"]
[PlyCount "85"]
[EventDate "2019.12.15"]
[EventType "swiss"]
[EventCountry "CRO"]
[SourceTitle "playchess.com"]
[Source "ChessBase"]
[SourceQuality "1"]
[TimeControl "40/5400+30:1800+30"]

1. e4 {[%emt 0:03:30]} c5 {[%emt 0:00:30]} 2. Nf3 {[%emt 0:00:30]} g6 {[%emt 0:00:00]} 3. d4 {[%emt 0:00:30]} cxd4 {[%emt 0:00:00]} 4. Qxd4 {[%emt 0:00:30]} Nf6 {[%emt 0:00:30]} 5. Bb5 {[%emt 0:00:00]} a6 {[%emt 0:00:30]} 6. Ba4 {[%emt 0:01:00]} b5 {[%emt 0:01:30]} 7. Bb3 {[%emt 0:00:30]} Nc6 {[%emt 0:01:30]} 8. Qd3 {[%emt 0:02:30]} Bg7 {[%emt 0:14:30]} 9. O-O {[%emt 0:07:30]} O-O {[%emt 0:00:30]} 10. Nc3 {[%emt 0:01:30]} Bb7 {[%emt 0:09:30]} 11. Re1 {[%emt 0:13:30]} d6 {[%emt 0:05:30]} 12. Bg5 {[%emt 0:01:30]} Rc8 {[%emt 0:23:30]} 13. Nd5 {[%emt 0:10:30]} e6 {[%emt 0:02:30]} 14. Nxf6+ {[%emt 0:07:30]} Bxf6 {[%emt 0:00:30]} 15. Qe3 {[%emt 0:01:30]} Na5 {[%emt 0:06:30]} 16. c3 {[%emt 0:05:30]} Nc4 {[%emt 0:03:30]} 17. Bxf6 {[%emt 0:07:30]} Qxf6 {[%emt 0:00:30]} 18. Bxc4 {[%emt 0:00:30]} Rxc4 {[%emt 0:00:30]} 19. Nd2 {[%emt 0:00:00]} Rc5 {[%emt 0:03:30]} 20. Nb3 {[%emt 0:02:00]} Re5 {[%emt 0:03:30]} 21. Qd4 {[%emt 0:02:30]} Qf4 {[%emt 0:06:36]} 22. Qxd6 {[%emt 0:05:30]} Rxe4 {[%emt 0:00:38]} 23. Qxf4 {[%emt 0:00:30]} Rxf4 {[%emt 0:00:03]} 24. Nc5 {[%emt 0:00:30]} Rb8 {[%emt 0:01:31]} 25. Red1 {[%emt 0:03:30]} Rc4 {[%emt 0:06:37]} 26. Nd7 {[%emt 0:00:30]} Rbc8 {[%emt 0:06:14]} 27. Nb6 {[%emt 0:01:30]} Bd5 {[%emt 0:00:40]} 28. Nxc8 {[%emt 0:00:30]} Rxc8 {[%emt 0:00:03]} 29. Rd4 {[%emt 0:00:30]} Bc6 {[%emt 0:01:46]} 30. f4 {[%emt 0:00:30]} Bd5 {[%emt 0:00:53]} 31. a4 {[%emt 0:01:30]} Kg7 {[%emt 0:00:49]} 32. axb5 {[%emt 0:04:28]} axb5 {[%emt 0:00:02]} 33. Ra5 {[%emt 0:00:23]} Rc5 {[%emt 0:00:39]} 34. Ra7 {[%emt 0:03:24]} Kf6 {[%emt 0:00:33]} 35. Kf2 {[%emt 0:00:14]} h5 {[%emt 0:00:27]} 36. g3 {[%emt 0:00:28]} e5 {[%emt 0:00:49]} 37. fxe5+ {[%emt 0:00:49]} Kxe5 {[%emt 0:00:02]} 38. Ke3 {[%emt 0:00:53]} Be6 {[%emt 0:01:04]} 39. Rb7 {[%emt 0:03:04]} Bd5 {[%emt 0:00:28]} 40. Rb6 {[%emt 0:01:00]} Bc6 {[%emt 0:00:33]} 41. Kd2 {[%emt 0:02:17]} Bd5 {[%emt 0:11:03]} 42. b4 {[%emt 0:01:30]} Rc4 {[%emt 0:00:30]} 43. Kd3 {[%emt 0:01:30]} 1-0

[Event "26th Zadar Open 2019"]
[Site "Zadar"]
[Date "2019.12.19"]
[Round "6.8"]
[White "Peng, Hongchi"]
[Black "Rudolf, Michal"]
[Result "0-1"]
[ECO "E20"]
[WhiteElo "2271"]
[BlackElo "2328"]
[Annotator "ChessBase"]
[PlyCount "64"]
[EventDate "2019.12.15"]
[EventType "swiss"]
[EventCountry "CRO"]
[SourceTitle "playchess.com"]
[Source "ChessBase"]
[SourceQuality "1"]
[TimeControl "40/5400+30:1800+30"]

1. d4 {[%emt 0:00:30]} Nf6 {[%emt 0:00:30]} 2. c4 {[%emt 0:00:00]} e6 {[%emt 0:00:30]} 3. Nc3 {[%emt 0:00:00]} Bb4 {[%emt 0:00:30]} 4. f3 {[%emt 0:00:30]} d5 {[%emt 0:00:30]} 5. a3 {[%emt 0:00:00]} Be7 {[%emt 0:01:30]} 6. e4 {[%emt 0:00:00]} dxe4 {[%emt 0:00:30]} 7. fxe4 {[%emt 0:00:00]} e5 {[%emt 0:00:30]} 8. d5 {[%emt 0:03:00]} Bc5 {[%emt 0:00:30]} 9. Nf3 {[%emt 0:01:30]} Bg4 {[%emt 0:02:30]} 10. Qa4+ {[%emt 0:07:30]} Nbd7 {[%emt 0:00:30]} 11. Bd2 {[%emt 0:14:30]} O-O {[%emt 0:01:30]} 12. O-O-O {[%emt 0:01:30]} Bd4 {[%emt 0:04:30]} 13. Qc2 {[%emt 0:04:30]} c6 {[%emt 0:03:30]} 14. Be2 {[%emt 0:13:30]} Rc8 {[%emt 0:13:30]} 15. Bg5 {[%emt 0:02:30]} Bxc3 {[%emt 0:07:30]} 16. dxc6 {[%emt 0:00:30]} bxc6 {[%emt 0:10:30]} 17. bxc3 {[%emt 0:09:30]} Qa5 {[%emt 0:01:30]} 18. a4 {[%emt 0:01:30]} Rb8 {[%emt 0:03:30]} 19. Kd2 {[%emt 0:05:30]} Nc5 {[%emt 0:06:30]} 20. Bxf6 {[%emt 0:00:30]} gxf6 {[%emt 0:00:30]} 21. Ke1 {[%emt 0:00:30]} Nxa4 {[%emt 0:01:30]} 22. Kf2 {[%emt 0:03:30]} Rb2 {[%emt 0:02:30]} 23. Qc1 {[%emt 0:00:30]} Qxc3 {[%emt 0:04:30]} 24. Rd6 {[%emt 0:09:30]} Rfb8 {[%emt 0:05:30]} 25. Rhd1 {[%emt 0:07:34]} Qxc1 {[%emt 0:01:30]} 26. Rxc1 {[%emt 0:00:01]} Nc5 {[%emt 0:00:00]} 27. Ke1 {[%emt 0:01:57]} R8b3 {[%emt 0:05:00]} 28. Kf1 {[%emt 0:04:59]} Re3 {[%emt 0:03:03]} 29. Bd1 {[%emt 0:01:00]} Nxe4 {[%emt 0:05:44]} 30. Rxc6 {[%emt 0:00:11]} Bxf3 {[%emt 0:02:00]} 31. gxf3 {[%emt 0:00:34]} Rf2+ {[%emt 0:00:25]} 32. Kg1 {[%emt 0:00:15]} Re1# {[%emt 0:00:48]} 0-1

[Event "26th Zadar Open 2019"]
[Site "Zadar"]
[Date "2019.12.19"]
[Round "6.9"]
[White "Pecnik, Leo"]
[Black "Livaic, Leon"]
[Result "0-1"]
[ECO "A28"]
[WhiteElo "2326"]
[BlackElo "2505"]
[Annotator "RC"]
[PlyCount "56"]
[EventDate "2019.12.15"]
[EventType "swiss"]
[EventCountry "CRO"]
[SourceTitle "playchess.com"]
[Source "ChessBase"]
[SourceQuality "1"]
[TimeControl "40/5400+30:1800+30"]

1. c4 {[%emt 0:02:30]} e5 {[%emt 0:01:30]} 2. Nc3 {[%emt 0:00:30]} Nc6 {[%emt 0:00:30]} 3. e3 {[%emt 0:00:30]} Nf6 {[%emt 0:00:30]} 4. Nf3 {[%emt 0:04:30]} Bb4 {[%emt 0:00:30]} 5. Qc2 {[%emt 0:05:30]} Bxc3 {[%emt 0:01:30]} 6. Qxc3 {[%emt 0:00:30]} Qe7 {[%emt 0:00:00]} 7. d3 {[%emt 0:01:30]} d5 {[%emt 0:02:00]} 8. Be2 {[%emt 0:06:30]} e4 {[%emt 0:08:30]} 9. dxe4 {[%emt 0:15:30]} dxe4 {[%emt 0:00:00]} 10. Nd4 {[%emt 0:00:00]} Ne5 {[%emt 0:00:00]} 11. b3 {[%emt 0:00:00]} c5 {[%emt 0:02:30]} 12. Nb5 {[%emt 0:08:30]} a6 {[%emt 0:01:30]} 13. Bb2 {[%emt 0:01:30]} Nd3+ {[%emt 0:02:30]} 14. Bxd3 {[%emt 0:00:00]} exd3 {[%emt 0:00:30]} 15. Na3 {[%emt 0:12:00]} Bf5 {[%emt 0:04:30]} 16. Nb1 {[%emt 0:10:30]} O-O-O {[%emt 0:06:30]} 17. Qe5 {[%emt 0:01:30]} Be6 {[%emt 0:01:30]} 18. Nd2 {[%emt 0:06:30]} h5 {[%emt 0:01:30]} 19. Qg5 {[%emt 0:01:30]} Rh6 {[%emt 0:03:30]} 20. Qxg7 {[%emt 0:09:25]} Ng4 {[%emt 0:01:30]} 21. h3 {[%emt 0:01:35]} Rg6 {[%emt 0:00:30]} 22. Qc3 {[%emt 0:00:14]} Nxf2 {[%emt 0:02:30]} 23. Rf1 {[%emt 0:06:49]} Bxh3 {[%emt 0:05:30]} 24. Kxf2 {[%emt 0:03:17]} Qh4+ {[%emt 0:02:30]} 25. Kg1 {[%emt 0:00:28]} Rxg2+ {[%emt 0:00:00]} 26. Kh1 {[%emt 0:00:04]} Qg3 {[%emt 0:00:00]} 27. Nf3 {[%emt 0:00:33]} Rh2+ {[%emt 0:00:30]} 28. Nxh2 {[%emt 0:00:05]} Qg2# {[%emt 0:00:00]} 0-1

[Event "26th Zadar Open 2019"]
[Site "Zadar"]
[Date "2019.12.19"]
[Round "6.12"]
[White "Galperin, Platon"]
[Black "Antova, Gabriela"]
[Result "1-0"]
[ECO "C24"]
[WhiteElo "2462"]
[BlackElo "2314"]
[Annotator "ChessBase"]
[PlyCount "83"]
[EventDate "2019.12.15"]
[EventType "swiss"]
[EventCountry "CRO"]
[SourceTitle "playchess.com"]
[Source "ChessBase"]
[SourceQuality "1"]
[TimeControl "40/5400+30:1800+30"]

1. e4 {[%emt 0:10:30]} e5 {[%emt 0:00:30]} 2. Bc4 {[%emt 0:00:30]} Nf6 {[%emt 0:00:30]} 3. d3 {[%emt 0:00:30]} c6 {[%emt 0:00:30]} 4. Bb3 {[%emt 0:00:30]} d5 {[%emt 0:00:30]} 5. Nf3 {[%emt 0:00:30]} Bb4+ {[%emt 0:02:30]} 6. Bd2 {[%emt 0:00:30]} Bxd2+ {[%emt 0:02:30]} 7. Qxd2 {[%emt 0:00:00]} Nbd7 {[%emt 0:01:30]} 8. Nc3 {[%emt 0:01:00]} d4 {[%emt 0:07:30]} 9. Ne2 {[%emt 0:00:00]} Qe7 {[%emt 0:01:30]} 10. Ng3 {[%emt 0:12:00]} g6 {[%emt 0:16:30]} 11. Ng5 {[%emt 0:02:30]} O-O {[%emt 0:01:30]} 12. h4 {[%emt 0:00:30]} h5 {[%emt 0:02:30]} 13. a3 {[%emt 0:20:30]} Nc5 {[%emt 0:04:30]} 14. Ba2 {[%emt 0:00:00]} Be6 {[%emt 0:01:30]} 15. Nxe6 {[%emt 0:00:00]} Nxe6 {[%emt 0:00:30]} 16. f3 {[%emt 0:01:30]} Nf4 {[%emt 0:07:30]} 17. O-O-O {[%emt 0:02:30]} b5 {[%emt 0:03:30]} 18. Nf1 {[%emt 0:04:30]} Kg7 {[%emt 0:08:30]} 19. Nh2 {[%emt 0:00:30]} c5 {[%emt 0:02:30]} 20. g3 {[%emt 0:00:30]} Ne6 {[%emt 0:00:30]} 21. f4 {[%emt 0:00:30]} Rac8 {[%emt 0:05:30]} 22. f5 {[%emt 0:05:30]} Nd8 {[%emt 0:01:30]} 23. g4 {[%emt 0:00:30]} Nxg4 {[%emt 0:08:56]} 24. Nxg4 {[%emt 0:00:30]} hxg4 {[%emt 0:00:02]} 25. Rdf1 {[%emt 0:07:30]} f6 {[%emt 0:04:42]} 26. Rhg1 {[%emt 0:03:30]} gxf5 {[%emt 0:02:40]} 27. exf5 {[%emt 0:00:30]} c4 {[%emt 0:00:33]} 28. Rxg4+ {[%emt 0:00:30]} Kf7 {[%emt 0:00:15]} 29. h5 {[%emt 0:04:30]} Ke8 {[%emt 0:00:38]} 30. h6 {[%emt 0:00:30]} Nf7 {[%emt 0:05:48]} 31. Rg7 {[%emt 0:03:28]} Qc5 {[%emt 0:00:43]} 32. Kb1 {[%emt 0:00:10]} Ke7 {[%emt 0:01:05]} 33. Qg2 {[%emt 0:00:09]} Kd6 {[%emt 0:03:00]} 34. Qg6 {[%emt 0:04:57]} Ng5 {[%emt 0:01:40]} 35. h7 {[%emt 0:00:30]} cxd3 {[%emt 0:00:03]} 36. cxd3 {[%emt 0:00:04]} Qc2+ {[%emt 0:00:49]} 37. Ka1 {[%emt 0:00:30]} Qxd3 {[%emt 0:00:41]} 38. Rh1 {[%emt 0:00:30]} Qd2 {[%emt 0:01:51]} 39. h8=Q {[%emt 0:00:37]} Rc1+ {[%emt 0:00:32]} 40. Rxc1 {[%emt 0:00:23]} Qxc1+ {[%emt 0:00:09]} 41. Bb1 {[%emt 0:30:00]} Rxh8 {[%emt 0:30:35]} 42. Qxf6+ {[%emt 0:00:06]} 1-0

[Event "26th Zadar Open 2019"]
[Site "Zadar"]
[Date "2019.12.19"]
[Round "6.13"]
[White "Spalir, Jernej"]
[Black "Chan, Kim Yew"]
[Result "1/2-1/2"]
[ECO "B36"]
[WhiteElo "2429"]
[BlackElo "2245"]
[Annotator "ChessBase"]
[PlyCount "70"]
[EventDate "2019.12.15"]
[EventType "swiss"]
[EventCountry "CRO"]
[SourceTitle "playchess.com"]
[Source "ChessBase"]
[SourceQuality "1"]
[TimeControl "40/5400+30:1800+30"]

1. e4 {[%emt 0:00:30]} c5 {[%emt 0:00:30]} 2. Nf3 {[%emt 0:00:00]} Nc6 {[%emt 0:00:30]} 3. d4 {[%emt 0:00:00]} cxd4 {[%emt 0:00:00]} 4. Nxd4 {[%emt 0:00:00]} g6 {[%emt 0:01:00]} 5. c4 {[%emt 0:01:00]} Nf6 {[%emt 0:00:30]} 6. Nc3 {[%emt 0:00:30]} d6 {[%emt 0:00:30]} 7. Be2 {[%emt 0:00:00]} Nxd4 {[%emt 0:00:00]} 8. Qxd4 {[%emt 0:00:00]} Bg7 {[%emt 0:00:00]} 9. Be3 {[%emt 0:00:30]} O-O {[%emt 0:00:00]} 10. Qd2 {[%emt 0:00:00]} Be6 {[%emt 0:00:00]} 11. Rc1 {[%emt 0:00:00]} Qa5 {[%emt 0:00:30]} 12. b3 {[%emt 0:00:30]} Rfc8 {[%emt 0:00:00]} 13. f3 {[%emt 0:00:00]} a6 {[%emt 0:00:00]} 14. Na4 {[%emt 0:00:00]} Qxd2+ {[%emt 0:00:30]} 15. Kxd2 {[%emt 0:00:30]} Nd7 {[%emt 0:00:00]} 16. g4 {[%emt 0:00:30]} f5 {[%emt 0:00:00]} 17. gxf5 {[%emt 0:00:00]} gxf5 {[%emt 0:00:30]} 18. Rhg1 {[%emt 0:00:00]} Kh8 {[%emt 0:00:30]} 19. Nc3 {[%emt 0:01:30]} Rf8 {[%emt 0:02:30]} 20. Nd5 {[%emt 0:06:30]} Bxd5 {[%emt 0:00:30]} 21. exd5 {[%emt 0:00:00]} f4 {[%emt 0:04:30]} 22. Bf2 {[%emt 0:02:00]} b5 {[%emt 0:16:30]} 23. cxb5 {[%emt 0:30:30]} axb5 {[%emt 0:00:30]} 24. Bxb5 {[%emt 0:00:30]} Rxa2+ {[%emt 0:04:30]} 25. Rc2 {[%emt 0:00:30]} Rxc2+ {[%emt 0:01:30]} 26. Kxc2 {[%emt 0:00:30]} Ra8 {[%emt 0:19:30]} 27. Ba4 {[%emt 0:28:30]} Nc5 {[%emt 0:12:30]} 28. Bh4 {[%emt 0:01:30]} Nxa4 {[%emt 0:01:30]} 29. bxa4 {[%emt 0:00:30]} Rxa4 {[%emt 0:01:30]} 30. Bxe7 {[%emt 0:00:30]} Be5 {[%emt 0:05:30]} 31. Rg5 {[%emt 0:05:30]} Ra7 {[%emt 0:14:36]} 32. Bf8 {[%emt 0:04:31]} Ra8 {[%emt 0:06:14]} 33. Be7 {[%emt 0:00:05]} Ra7 {[%emt 0:00:10]} 34. Bf8 {[%emt 0:00:05]} Ra8 {[%emt 0:05:18]} 35. Be7 {[%emt 0:00:19]} Ra7 {[%emt 0:01:35]} 1/2-1/2

[Event "26th Zadar Open 2019"]
[Site "Zadar"]
[Date "2019.12.19"]
[Round "6.17"]
[White "Lye, Lik Zang"]
[Black "Vidic, Teja"]
[Result "1/2-1/2"]
[ECO "D02"]
[WhiteElo "2379"]
[BlackElo "2221"]
[Annotator "RC"]
[PlyCount "118"]
[EventDate "2019.12.15"]
[EventType "swiss"]
[EventCountry "CRO"]
[SourceTitle "playchess.com"]
[Source "ChessBase"]
[SourceQuality "1"]
[TimeControl "40/5400+30:1800+30"]

1. d4 {[%emt 0:00:30]} d5 {[%emt 0:00:30]} 2. Bf4 {[%emt 0:00:00]} Nf6 {[%emt 0:00:30]} 3. e3 {[%emt 0:00:00]} e6 {[%emt 0:00:00]} 4. Nf3 {[%emt 0:00:30]} Bd6 {[%emt 0:00:00]} 5. Bg3 {[%emt 0:00:30]} O-O {[%emt 0:00:30]} 6. Nbd2 {[%emt 0:05:30]} b6 {[%emt 0:00:30]} 7. Bd3 {[%emt 0:04:30]} c5 {[%emt 0:00:30]} 8. c3 {[%emt 0:00:30]} Ba6 {[%emt 0:02:30]} 9. Bxa6 {[%emt 0:11:30]} Nxa6 {[%emt 0:00:30]} 10. Qe2 {[%emt 0:00:30]} Nb8 {[%emt 0:00:00]} 11. e4 {[%emt 0:13:30]} Be7 {[%emt 0:00:00]} 12. exd5 {[%emt 0:02:30]} Qxd5 {[%emt 0:01:30]} 13. dxc5 {[%emt 0:05:30]} Qxc5 {[%emt 0:00:30]} 14. Ne5 {[%emt 0:03:30]} Nbd7 {[%emt 0:13:30]} 15. Ne4 {[%emt 0:04:30]} Qc8 {[%emt 0:01:30]} 16. O-O-O {[%emt 0:05:30]} Nd5 {[%emt 0:18:30]} 17. h4 {[%emt 0:11:30]} Nxe5 {[%emt 0:09:30]} 18. Bxe5 {[%emt 0:00:30]} Qc6 {[%emt 0:00:30]} 19. Kb1 {[%emt 0:09:36]} Rac8 {[%emt 0:01:30]} 20. g4 {[%emt 0:05:20]} b5 {[%emt 0:12:30]} 21. g5 {[%emt 0:03:40]} b4 {[%emt 0:02:30]} 22. Rdg1 {[%emt 0:04:06]} bxc3 {[%emt 0:03:30]} 23. Nxc3 {[%emt 0:00:20]} Nxc3+ {[%emt 0:02:30]} 24. Bxc3 {[%emt 0:00:04]} Qd5 {[%emt 0:00:00]} 25. Ka1 {[%emt 0:03:53]} Rc4 {[%emt 0:03:00]} 26. Rd1 {[%emt 0:00:33]} Qe4 {[%emt 0:02:30]} 27. Qxe4 {[%emt 0:01:41]} Rxe4 {[%emt 0:00:30]} 28. Bd4 {[%emt 0:00:34]} a5 {[%emt 0:04:30]} 29. Be3 {[%emt 0:00:15]} Rb8 {[%emt 0:01:37]} 30. Rd7 {[%emt 0:00:45]} Kf8 {[%emt 0:00:15]} 31. h5 {[%emt 0:02:10]} Rb5 {[%emt 0:06:38]} 32. Rc1 {[%emt 0:00:38]} Ke8 {[%emt 0:03:41]} 33. Ra7 {[%emt 0:00:17]} Bc5 {[%emt 0:01:02]} 34. Ra8+ {[%emt 0:01:20]} Ke7 {[%emt 0:00:09]} 35. Rxc5 {[%emt 0:00:43]} Rxe3 {[%emt 0:00:24]} 36. Ra7+ {[%emt 0:00:31]} Kd6 {[%emt 0:00:53]} 37. fxe3 {[%emt 0:00:31]} Rxc5 {[%emt 0:00:05]} 38. a4 {[%emt 0:00:09]} Rxg5 {[%emt 0:02:49]} 39. Rxf7 {[%emt 0:00:05]} Rxh5 {[%emt 0:00:12]} 40. Rxg7 {[%emt 0:00:03]} Kc5 {[%emt 0:03:44]} 41. Ka2 {[%emt 0:02:16]} Re5 {[%emt 0:09:01]} 42. Rxh7 {[%emt 0:05:30]} Rxe3 {[%emt 0:00:00]} 43. Rb7 {[%emt 0:00:30]} Kd4 {[%emt 0:06:00]} 44. Rd7+ {[%emt 0:07:27]} Kc5 {[%emt 0:01:30]} 45. Rb7 {[%emt 0:01:10]} Kd4 {[%emt 0:00:30]} 46. b3 {[%emt 0:04:42]} Re5 {[%emt 0:03:37]} 47. Ka3 {[%emt 0:00:56]} Rd5 {[%emt 0:01:04]} 48. b4 {[%emt 0:01:36]} axb4+ {[%emt 0:00:37]} 49. Kxb4 {[%emt 0:00:06]} e5 {[%emt 0:01:43]} 50. a5 {[%emt 0:00:47]} e4 {[%emt 0:02:55]} 51. a6 {[%emt 0:00:22]} Rd6 {[%emt 0:00:50]} 52. Kb5 {[%emt 0:02:36]} Rxa6 {[%emt 0:00:29]} 53. Kxa6 {[%emt 0:00:10]} e3 {[%emt 0:00:05]} 54. Kb5 {[%emt 0:03:28]} e2 {[%emt 0:02:06]} 55. Re7 {[%emt 0:00:08]} Kd3 {[%emt 0:00:05]} 56. Kb4 {[%emt 0:00:26]} Kd2 {[%emt 0:00:06]} 57. Rd7+ {[%emt 0:00:03]} Kc2 {[%emt 0:00:16]} 58. Re7 {[%emt 0:00:12]} Kd2 {[%emt 0:00:05]} 59. Rxe2+ {[%emt 0:00:03]} Kxe2 {[%emt 0:00:05]} 1/2-1/2

[Event "26th Zadar Open 2019"]
[Site "Zadar"]
[Date "2019.12.19"]
[Round "6.18"]
[White "Sutkovic, Damir"]
[Black "Rogic, Davor"]
[Result "0-1"]
[ECO "A07"]
[WhiteElo "2292"]
[BlackElo "2485"]
[Annotator "ChessBase"]
[PlyCount "78"]
[EventDate "2019.12.15"]
[EventType "swiss"]
[EventCountry "CRO"]
[SourceTitle "playchess.com"]
[Source "ChessBase"]
[SourceQuality "1"]
[TimeControl "40/5400+30:1800+30"]

1. Nf3 {[%emt 0:00:30]} d5 {[%emt 0:00:30]} 2. d3 {[%emt 0:00:00]} g6 {[%emt 0:00:30]} 3. g3 {[%emt 0:02:00]} Bg7 {[%emt 0:00:00]} 4. Bg2 {[%emt 0:00:00]} e5 {[%emt 0:00:00]} 5. O-O {[%emt 0:01:00]} Ne7 {[%emt 0:00:30]} 6. e4 {[%emt 0:03:30]} O-O {[%emt 0:00:30]} 7. exd5 {[%emt 0:00:30]} Nxd5 {[%emt 0:00:30]} 8. Re1 {[%emt 0:00:30]} Nc6 {[%emt 0:00:30]} 9. Bg5 {[%emt 0:02:30]} f6 {[%emt 0:10:30]} 10. Bd2 {[%emt 0:00:30]} g5 {[%emt 0:04:30]} 11. Nc3 {[%emt 0:06:30]} Nde7 {[%emt 0:00:30]} 12. h3 {[%emt 0:08:30]} g4 {[%emt 0:05:30]} 13. hxg4 {[%emt 0:00:30]} Bxg4 {[%emt 0:00:30]} 14. Qc1 {[%emt 0:01:30]} Qd7 {[%emt 0:05:30]} 15. Bh6 {[%emt 0:02:30]} Rf7 {[%emt 0:03:30]} 16. Ne4 {[%emt 0:17:30]} Raf8 {[%emt 0:01:30]} 17. Nc5 {[%emt 0:01:30]} Qc8 {[%emt 0:01:30]} 18. c3 {[%emt 0:01:30]} b6 {[%emt 0:10:30]} 19. Nb3 {[%emt 0:01:30]} f5 {[%emt 0:00:30]} 20. Bxg7 {[%emt 0:03:30]} Rxg7 {[%emt 0:00:00]} 21. Nxe5 {[%emt 0:00:30]} Nxe5 {[%emt 0:01:00]} 22. Rxe5 {[%emt 0:00:00]} f4 {[%emt 0:02:30]} 23. Qe1 {[%emt 0:14:00]} Ng6 {[%emt 0:03:30]} 24. Bd5+ {[%emt 0:11:38]} Kh8 {[%emt 0:00:00]} 25. Rg5 {[%emt 0:00:39]} h6 {[%emt 0:05:00]} 26. Rxg6 {[%emt 0:00:43]} Rxg6 {[%emt 0:00:30]} 27. Qe5+ {[%emt 0:00:32]} Rg7 {[%emt 0:03:30]} 28. Nd4 {[%emt 0:02:02]} c5 {[%emt 0:05:30]} 29. Ne6 {[%emt 0:02:22]} Bxe6 {[%emt 0:00:30]} 30. Bxe6 {[%emt 0:00:36]} Qd8 {[%emt 0:02:30]} 31. d4 {[%emt 0:02:06]} cxd4 {[%emt 0:00:30]} 32. cxd4 {[%emt 0:00:06]} fxg3 {[%emt 0:01:30]} 33. fxg3 {[%emt 0:00:19]} Rf3 {[%emt 0:00:30]} 34. Rc1 {[%emt 0:06:42]} Rfxg3+ {[%emt 0:00:30]} 35. Kf2 {[%emt 0:00:28]} Qf8+ {[%emt 0:02:30]} 36. Bf5 {[%emt 0:02:37]} R3g5 {[%emt 0:00:30]} 37. Rc8 {[%emt 0:00:18]} Qxc8 {[%emt 0:00:30]} 38. Bxc8 {[%emt 0:00:57]} Rxe5 {[%emt 0:00:30]} 39. dxe5 {[%emt 0:00:09]} Rc7 {[%emt 0:00:00]} 0-1

[Event "26th Zadar Open 2019"]
[Site "Zadar"]
[Date "2019.12.19"]
[Round "6.19"]
[White "Zelic, Mladen"]
[Black "Moksh Amit Doshi"]
[Result "1/2-1/2"]
[ECO "C36"]
[WhiteElo "2254"]
[BlackElo "2399"]
[Annotator "ChessBase"]
[PlyCount "54"]
[EventDate "2019.12.15"]
[EventType "swiss"]
[EventCountry "CRO"]
[SourceTitle "playchess.com"]
[Source "ChessBase"]
[SourceQuality "1"]
[TimeControl "40/5400+30:1800+30"]

1. e4 {[%emt 0:00:30]} e5 {[%emt 0:03:30]} 2. f4 {[%emt 0:00:30]} exf4 {[%emt 0:00:00]} 3. Nf3 {[%emt 0:00:00]} Ne7 {[%emt 0:01:00]} 4. Bc4 {[%emt 0:10:00]} d5 {[%emt 0:01:30]} 5. exd5 {[%emt 0:00:30]} Nxd5 {[%emt 0:00:00]} 6. O-O {[%emt 0:00:00]} Be7 {[%emt 0:02:00]} 7. Nc3 {[%emt 0:01:00]} Be6 {[%emt 0:04:30]} 8. Qe2 {[%emt 0:00:30]} Nc6 {[%emt 0:01:30]} 9. d4 {[%emt 0:00:30]} Nxc3 {[%emt 0:12:30]} 10. bxc3 {[%emt 0:00:30]} Bxc4 {[%emt 0:00:00]} 11. Qxc4 {[%emt 0:00:00]} Qd6 {[%emt 0:00:00]} 12. Bd2 {[%emt 0:00:00]} O-O {[%emt 0:01:30]} 13. Rae1 {[%emt 0:00:30]} Bf6 {[%emt 0:02:30]} 14. Re4 {[%emt 0:07:30]} g5 {[%emt 0:01:30]} 15. h4 {[%emt 0:05:30]} h6 {[%emt 0:00:30]} 16. hxg5 {[%emt 0:00:30]} hxg5 {[%emt 0:00:30]} 17. g3 {[%emt 0:00:30]} Rae8 {[%emt 0:02:30]} 18. Rfe1 {[%emt 0:03:30]} Rxe4 {[%emt 0:01:30]} 19. Rxe4 {[%emt 0:00:30]} Ne7 {[%emt 0:08:30]} 20. gxf4 {[%emt 0:06:30]} Nd5 {[%emt 0:00:30]} 21. Ne5 {[%emt 0:24:30]} Nxf4 {[%emt 0:06:30]} 22. Bxf4 {[%emt 0:00:30]} gxf4 {[%emt 0:00:30]} 23. Rxf4 {[%emt 0:12:30]} Bxe5 {[%emt 0:04:30]} 24. dxe5 {[%emt 0:00:30]} Qd1+ {[%emt 0:02:30]} 25. Kf2 {[%emt 0:01:30]} Qd2+ {[%emt 0:01:30]} 26. Kf3 {[%emt 0:01:30]} Qd1+ {[%emt 0:00:30]} 27. Kf2 {[%emt 0:00:00]} Qd2+ {[%emt 0:00:00]} 1/2-1/2

[Event "26th Zadar Open 2019"]
[Site "Zadar"]
[Date "2019.12.19"]
[Round "6.20"]
[White "Ascic, Pero"]
[Black "Sai Agni Jeevitesh, J."]
[Result "1/2-1/2"]
[ECO "C41"]
[WhiteElo "2310"]
[BlackElo "2301"]
[Annotator "ChessBase"]
[PlyCount "75"]
[EventDate "2019.12.15"]
[EventType "swiss"]
[EventCountry "CRO"]
[SourceTitle "playchess.com"]
[Source "ChessBase"]
[SourceQuality "1"]
[TimeControl "40/5400+30:1800+30"]

1. e4 {[%emt 0:01:30]} d6 {[%emt 0:00:30]} 2. d4 {[%emt 0:02:30]} Nf6 {[%emt 0:00:00]} 3. Nc3 {[%emt 0:03:30]} Nbd7 {[%emt 0:00:00]} 4. Nf3 {[%emt 0:00:30]} e5 {[%emt 0:00:00]} 5. Bc4 {[%emt 0:02:30]} Be7 {[%emt 0:00:00]} 6. O-O {[%emt 0:06:30]} O-O {[%emt 0:00:30]} 7. h3 {[%emt 0:04:30]} c6 {[%emt 0:00:00]} 8. a4 {[%emt 0:01:30]} Qc7 {[%emt 0:02:00]} 9. Ba2 {[%emt 0:02:30]} h6 {[%emt 0:03:30]} 10. Re1 {[%emt 0:01:30]} Re8 {[%emt 0:00:30]} 11. Be3 {[%emt 0:02:30]} Nf8 {[%emt 0:00:30]} 12. Qd2 {[%emt 0:07:30]} Be6 {[%emt 0:07:30]} 13. Bxe6 {[%emt 0:07:30]} Nxe6 {[%emt 0:00:30]} 14. d5 {[%emt 0:14:30]} cxd5 {[%emt 0:04:30]} 15. Nxd5 {[%emt 0:03:30]} Qc6 {[%emt 0:08:30]} 16. Nxf6+ {[%emt 0:01:30]} Bxf6 {[%emt 0:00:30]} 17. Qd3 {[%emt 0:02:30]} Bg5 {[%emt 0:19:30]} 18. Nxg5 {[%emt 0:02:30]} hxg5 {[%emt 0:04:30]} 19. c3 {[%emt 0:02:30]} Nf4 {[%emt 0:06:30]} 20. Bxf4 {[%emt 0:02:30]} gxf4 {[%emt 0:00:30]} 21. Red1 {[%emt 0:00:30]} Re6 {[%emt 0:00:30]} 22. Rd2 {[%emt 0:02:30]} Rg6 {[%emt 0:02:30]} 23. f3 {[%emt 0:08:59]} Rc8 {[%emt 0:02:30]} 24. Qb5 {[%emt 0:01:18]} Kf8 {[%emt 0:01:30]} 25. Rd5 {[%emt 0:02:06]} Ke7 {[%emt 0:05:30]} 26. Rad1 {[%emt 0:01:16]} a6 {[%emt 0:01:30]} 27. Qb4 {[%emt 0:00:58]} Re6 {[%emt 0:00:30]} 28. a5 {[%emt 0:00:14]} b5 {[%emt 0:03:30]} 29. axb6 {[%emt 0:02:43]} Rb8 {[%emt 0:00:30]} 30. Kh2 {[%emt 0:03:45]} Rxb6 {[%emt 0:00:30]} 31. Qa3 {[%emt 0:00:10]} Qc4 {[%emt 0:02:30]} 32. b4 {[%emt 0:02:37]} Qe2 {[%emt 0:04:30]} 33. R5d2 {[%emt 0:00:24]} Qe3 {[%emt 0:00:30]} 34. Rd3 {[%emt 0:00:11]} Qf2 {[%emt 0:00:30]} 35. R3d2 {[%emt 0:01:40]} Qg3+ {[%emt 0:02:26]} 36. Kh1 {[%emt 0:00:03]} Rc6 {[%emt 0:05:15]} 37. c4 {[%emt 0:01:31]} Rxc4 {[%emt 0:05:41]} 38. Qxa6 {[%emt 0:02:50]} 1/2-1/2